Cogmind - Beta 11.1 @@@ ROGUE MODE // 2022.05.24 @ 11:09:55 Player: Jamuson Result: Self-destructed Performance ------------- Evolutions (2) 1000 Regions Visited (7) 1400 Robots Destroyed (67) 335 Value Destroyed (1533) 1533 Prototype IDs (26) 520 Alien Tech Used (0) 0 Bonus (300) 300 TOTAL SCORE: 5088 Bonus ------- Aligned with FarCom 300 Cogmind --------- Core Integrity 364/550 Matter 69/300 Energy 240/240 System Corruption 0% Temperature Critical (511) Movement Core (700) Ox13 Location -8/Materials Parts ------- > --- POWER (1) -------- Nuclear Core > --- PROPULSION (4) --- Flying Fortress v7 > --- UTILITY (3) ------ Large Storage Unit Structural Scanner Hardened Light Armor Plating > --- WEAPON (3) ------- Autogun Improved Assault Rifle Improved Assault Rifle > --- INVENTORY (15) --- Armored Wheel Armored Wheel Medium Matter Pod (100) Machine Analyzer Advanced Targeting Computer Pulse Rifle Pulse Rifle Pulse Rifle Rocket Launcher Peak State ------------ > --- POWER ------------ Nuclear Core > --- PROPULSION ------- Flying Fortress v7 > --- UTILITY ---------- Large Storage Unit Structural Scanner Hardened Light Armor Plating > --- WEAPON ----------- Pulse Rifle Improved Assault Rifle Rocket Launcher > --- INVENTORY -------- Nuclear Core Armored Wheel Armored Wheel Medium Matter Pod Machine Analyzer Advanced Targeting Computer Pulse Rifle Pulse Rifle Pulse Rifle Autogun Improved Assault Rifle Improved Assault Rifle [Rating: 50] Favorites ----------- Power Nuclear Core Engine Ion Engine Power Core Nuclear Core Propulsion Armored Wheel Leg Aluminum Leg Wheel Armored Wheel Flight Unit Flying Fortress v7 Utility Large Storage Unit Device Structural Scanner Storage Large Storage Unit Protection Hardened Light Armor Plating Weapon Improved Assault Rifle Energy Gun Pulse Rifle Ballistic Gun Improved Assault Rifle Launcher Rocket Launcher Build | -11 -10 -10 -9 -9 -9 -8 -8 ------- Run | Scr Mat Min Mat Min Exi Min Mat Slots Evolved 4 | . . . 2 . . . 2 Power . | . . . . . . . . Propulsion 2 | . . . . . . . 2 Utility 1 | . . . 1 . . . . Weapon 1 | . . . 1 . . . . Parts Attached 45 | . 19 . 20 . . 1 5 Power 5 | . 1 . 3 . . . 1 Engine 3 | . 1 . 2 . . . . Core 2 | . . . 1 . . . 1 Reactor . | . . . . . . . . Propulsion 7 | . 3 . 3 . . . 1 Treads . | . . . . . . . . Leg . | . . . . . . . . Wheel 6 | . 3 . 3 . . . . Hover . | . . . . . . . . Flight 1 | . . . . . . . 1 Utility 14 | . 5 . 9 . . . . Device 2 | . . . 2 . . . . Storage 3 | . 3 . . . . . . Processor . | . . . . . . . . Hackware . | . . . . . . . . Protection 9 | . 2 . 7 . . . . Artifact . | . . . . . . . . Weapon 19 | . 10 . 5 . . 1 3 Energy Gun 2 | . 1 . 1 . . . . Energy Cannon . | . . . . . . . . Ballistic Gun 14 | . 7 . 4 . . . 3 Ballistic Cannon . | . . . . . . . . Launcher 3 | . 2 . . . . 1 . Special Weapon . | . . . . . . . . Impact Weapon . | . . . . . . . . Slashing Weapon . | . . . . . . . . Piercing Weapon . | . . . . . . . . Special Melee Weapon . | . . . . . . . . Unidentified Prototypes 1 | . . . 1 . . . . Parts Lost 5 | . 2 . 1 . . . 2 Power 2 | . 1 . . . . . 1 Propulsion 1 | . . . 1 . . . . Utility . | . . . . . . . . Weapon 2 | . 1 . . . . . 1 Highest Loss Streak 2 | . 2 . 1 . . . 2 To Critical Strikes . | . . . . . . . . Average Slot Usage (%) 96 | . 93 100 98 100 100 100 72 Engine 7 | . 13 14 9 . . . . Core 4 | . . . 1 11 11 11 9 Wheel 21 | . 24 28 21 22 22 22 . Device 5 | . . . 4 11 11 11 9 Storage 11 | . 14 14 11 11 11 11 9 Protection 12 | . 8 14 17 11 11 11 9 Energy Gun 6 | . 4 . 5 11 11 11 7 Ballistic Gun 23 | . 23 28 27 22 22 11 13 Launcher 1 | . . . . . . 10 6 Naked Turns . | . . . . . . . . Heaviest Build 48 | 12 38 38 48 42 42 43 43 Greatest Support 50 | 20 26 26 28 24 24 24 50 Greatest Overweight (x) 3 | . 1 1 3 1 1 1 . Average Overweight (x) . | . . 1 1 1 1 1 . Largest Inventory Capacity 15 | . 15 15 15 15 15 15 15 Average Capacity 13 | . 10 15 15 15 15 15 15 Most Carried 15 | . 14 14 15 14 15 15 15 Average Carried 12 | . 9 14 14 14 14 14 11 Final Capacity 15 | 8 15 15 15 15 15 15 15 Final Carried 15 | 6 14 14 14 14 15 15 9 Class Distribution -------------------- 63% | Tank 32% | Mutant 4% | Skirmisher Dominant Class ---------------- Mutant | -10/Materials Mutant | -10/Mines Tank | -9/Materials Tank | -9/Mines Tank | -9/Exiles Mutant | -8/Mines Mutant | -8/Materials Resources | -11 -10 -10 -9 -9 -9 -8 -8 ----------- Run | Scr Mat Min Mat Min Exi Min Mat Matter Collected 1809 | 200 394 . 942 139 . 53 81 Remotely . | . . . . . . . . Salvage Created 1767 | . 386 . 922 133 . 28 298 Parts 122 | . 28 . 61 10 . 6 17 Haulers Intercepted 3 | . 1 . 2 . . . . Recyclers Shooed . | . . . . . . . . Parts Field Recycled . | . . . . . . . . Retrieved Matter . | . . . . . . . . Parts Self-Destructed . | . . . . . . . . Prevented . | . . . . . . . . Kills | -11 -10 -10 -9 -9 -9 -8 -8 ------- Run | Scr Mat Min Mat Min Exi Min Mat Combat Hostiles Destroyed 54 | . 12 . 23 6 . 3 10 Guns 43 | . 9 . 23 6 . . 5 AOE 11 | . 3 . . . . 3 5 Classes Destroyed 9 | . 5 . 1 . . 1 2 Worker 1 | . 1 . . . . . . Builder 2 | . . . . . . . 2 Tunneler 1 | . . . . . . 1 . Hauler 3 | . 1 . 2 . . . . Recycler 1 | . . . . . . . 1 Watcher 5 | . 3 . 2 . . . . Swarmer 27 | . 6 . 10 4 . 3 4 Grunt 16 | . 6 . 4 2 . . 4 Sentry 11 | . . . 9 . . . 2 Best Kill Streak 11 | . 4 . 5 4 . 4 11 Combat Bots Only 8 | . 3 . 5 4 . 3 8 Max Kills in Single Turn 3 | . 2 . 1 2 . 2 3 Gunslinging 1 | . . . . 1 . . . Exploded 3 | . 2 . . . . 2 3 Melee . | . . . . . . . . Uniques/NPCs Destroyed . | . . . . . . . . Combat | -11 -10 -10 -9 -9 -9 -8 -8 -------- Run | Scr Mat Min Mat Min Exi Min Mat Damage Taken 2216 | . 509 . 831 78 . 6 792 Core 358 | . 84 . 72 16 . . 186 Absorbed by Shields . | . . . . . . . . Core Remaining (%) 81 | 100 . 66 . . . 78 . Volleys Fired 154 | . 51 . 67 8 . 2 26 Largest 3 | . 2 . 3 3 . 1 3 Hottest 119 | . 50 . 109 109 . 33 119 Shots Fired 379 | . 99 . 202 24 . 2 52 Gun 359 | . 94 . 202 24 . . 39 Cannon . | . . . . . . . . Launcher 20 | . 5 . . . . 2 13 Special . | . . . . . . . . Kinetic 319 | . 94 . 177 16 . . 32 Thermal 40 | . . . 25 8 . . 7 Explosive 20 | . 5 . . . . 2 13 Electromagnetic . | . . . . . . . . Robot Hit Streak 27 | . 7 . 27 9 . . 7 Robot Miss Streak 7 | . 5 . 6 7 . . 4 Penetration Max . | . . . . . . . . Secondary Targets 6 | . 2 . 1 3 . . . Max Gunslinging Chain 2 | . 1 . 1 2 . . . Shots Hit Robots 234 | . 55 . 131 18 . . 30 Core Hits 101 | . 26 . 40 7 . 4 24 Critical Kills . | . . . . . . . . Critical Parts Destroyed 1 | . . . 1 . . . . Critical Strikes 2 | . . . 1 1 . . . Burn 1 | . . . . 1 . . . Destroy 1 | . . . 1 . . . . Melee Attacks . | . . . . . . . . Impact . | . . . . . . . . Slashing . | . . . . . . . . Piercing . | . . . . . . . . Sneak Attacks . | . . . . . . . . Combat Hostiles . | . . . . . . . . Follow-up Attacks . | . . . . . . . . Damage Inflicted 4822 | . 1080 . 2058 329 . 244 1111 Guns 3510 | . 718 . 2054 329 . . 409 Cannons . | . . . . . . . . Explosions 1301 | . 355 . . . . 244 702 Melee . | . . . . . . . . Ramming 11 | . 7 . 4 . . . . Kinetic 2967 | . 718 . 1719 209 . . 321 Thermal 543 | . . . 335 120 . . 88 Explosive 1301 | . 355 . . . . 244 702 Electromagnetic . | . . . . . . . . Impact . | . . . . . . . . Slashing . | . . . . . . . . Piercing . | . . . . . . . . Highest Corruption 3 | . . . 3 3 3 3 . Average Corruption 2 | . . . 2 3 3 3 . Corruption Purged . | . . . . . . . . Corruption Blocked . | . . . . . . . . Effects 31 | . . . 14 9 6 2 . Message Errors 7 | . . . 3 2 1 1 . Matter Fused 8 | . . . 3 3 1 1 . Heat Flow Errors 2 | . . . 1 1 . . . Energy Discharges 5 | . . . 2 2 1 . . Parts Rejected 1 | . . . 1 . . . . Data Loss (minor) 7 | . . . 3 1 3 . . Misfires 1 | . . . 1 . . . . Overload Shots . | . . . . . . . . Overflow Damage 32 | . 10 . . . . . 22 Projectiles . | . . . . . . . . Explosions 32 | . 10 . . . . . 22 Melee . | . . . . . . . . Knockbacks . | . . . . . . . . Impact . | . . . . . . . . Kinetic . | . . . . . . . . Secondary . | . . . . . . . . Self-Inflicted Damage 85 | . 57 . 2 . . . 26 Shots 3 | . 2 . . . . . 1 Rammed 2 | . 1 . 1 . . . . Targets Rammed 2 | . 1 . 1 . . . . Kicked . | . . . . . . . . Crushed . | . . . . . . . . Highest Temperature 584 | . 25 . 290 299 . . 584 Average Temperature 124 | . 8 . 86 117 . . 300 Received Heat Transfer 780 | . 141 . 246 15 . . 378 Effects 19 | . . . . . . . 19 Shutdowns 4 | . . . . . . . 4 Interference 4 | . . . . . . . 4 Matter Decay 3 | . . . . . . . 3 Short Circuit 2 | . . . . . . . 2 Damage (minor) 1 | . . . . . . . 1 Damage (major) 3 | . . . . . . . 3 Damage (core) 2 | . . . . . . . 2 Siege Activations . | . . . . . . . . Robots Corrupted . | . . . . . . . . Combat Hostiles . | . . . . . . . . Parts Fried . | . . . . . . . . Impact Corruptions . | . . . . . . . . Robots Melted . | . . . . . . . . Combat Hostiles . | . . . . . . . . Parts Melted 3 | . . . 2 1 . . . Heat Transferred 1221 | . . . 703 333 . . 185 Parts Sabotaged . | . . . . . . . . Parts Stolen . | . . . . . . . . Parts Stripped . | . . . . . . . . Power Chain Reactions . | . . . . . . . . Missiles Intercepted . | . . . . . . . . Alert | -11 -10 -10 -9 -9 -9 -8 -8 ------- Run | Scr Mat Min Mat Min Exi Min Mat Peak Influence 394 | . 250 65 316 212 . 90 394 Initial 65 | . . 65 25 42 . . 35 Average 146 | . 88 65 190 149 . 56 204 Maximum Alert Level 1 | . 1 . 1 1 . . 1 Low Security (%) 66 | . 93 100 52 51 . 100 48 Level 1 33 | . 6 . 47 48 . . 51 Level 2 . | . . . . . . . . Level 3 . | . . . . . . . . Level 4 . | . . . . . . . . Level 5 . | . . . . . . . . High Security . | . . . . . . . . Max Security . | . . . . . . . . Squads Dispatched 8 | . 3 . 3 . . 1 1 Investigation 3 | . 2 . 1 . . . . Extermination . | . . . . . . . . Reinforcement 5 | . 1 . 2 . . 1 1 Assault . | . . . . . . . . Garrison . | . . . . . . . . Intercept . | . . . . . . . . Searches Triggered . | . . . . . . . . Construction Impeded 2 | . . . . . . 1 1 Haulers Reinforced . | . . . . . . . . Active Scanning Responses . | . . . . . . . . Cargo Convoy Interrupts . | . . . . . . . . Stealth | -11 -10 -10 -9 -9 -9 -8 -8 --------- Run | Scr Mat Min Mat Min Exi Min Mat Distress Signals 6 | . . . 2 . . 1 3 Communications Jammed . | . . . . . . . . Distress Signals . | . . . . . . . . Times Spotted 66 | . 16 . 29 5 . 1 15 Peak Tracking Total 9 | . 3 . 4 3 . 1 9 Tactical Retreats 5 | . . . 3 . . . 2 Traps | -11 -10 -10 -9 -9 -9 -8 -8 ------- Run | Scr Mat Min Mat Min Exi Min Mat Traps Triggered 5 | . 2 . 3 . . . . Indirectly . | . . . . . . . . Trap Hack Attempts . | . . . . . . . . Triggered . | . . . . . . . . Disarmed . | . . . . . . . . Reprogrammed . | . . . . . . . . Reused . | . . . . . . . . Traps Extracted . | . . . . . . . . Installed . | . . . . . . . . Triggered . | . . . . . . . . Machines | -11 -10 -10 -9 -9 -9 -8 -8 ---------- Run | Scr Mat Min Mat Min Exi Min Mat Machines Disabled 2 | . . . 1 1 . . . Max in Single Turn 1 | . . . 1 1 . . . Machines Sabotaged . | . . . . . . . . Garrisons Compromised . | . . . . . . . . Overloaded Fab Kills . | . . . . . . . . Hacking | -11 -10 -10 -9 -9 -9 -8 -8 --------- Run | Scr Mat Min Mat Min Exi Min Mat Machines Accessed 16 | . 8 . 7 . 1 . . Terminals 14 | . 7 . 7 . . . . Fabricators . | . . . . . . . . Repair Stations . | . . . . . . . . Recycling Units 1 | . 1 . . . . . . Scanalyzers . | . . . . . . . . Garrison Access . | . . . . . . . . Total Hacks 59 | . 28 . 30 . 1 . . Successful 35 | . 16 . 18 . 1 . . Failed 22 | . 11 . 11 . . . . Catastrophic . | . . . . . . . . Database Lockouts 2 | . 1 . 1 . . . . Manual 47 | . 24 . 22 . 1 . . Terminals 57 | . 27 . 30 . . . . Fabricators . | . . . . . . . . Repair Stations . | . . . . . . . . Recycling Units 1 | . 1 . . . . . . Scanalyzers . | . . . . . . . . Garrison Access . | . . . . . . . . Terminal Hacks 23 | . 8 . 14 . 1 . . Robot Analysis 3 | . 1 . 2 . . . . Prototype ID Bank 1 | . . . 1 . . . . Branch Access Points 2 | . 1 . 1 . . . . Terminal Index 3 | . 1 . 2 . . . . Alert Level 3 | . 1 . 2 . . . . Unreport Threat 3 | . 1 . 2 . . . . Recall Investigation 2 | . 1 . 1 . . . . Hauler Manifests 2 | . 1 . 1 . . . . Registered Components 2 | . 1 . 1 . . . . Zone Layout 1 | . . . 1 . . . . EX-Prototype ID Bank 1 | . . . . . 1 . . Fabricator Hacks . | . . . . . . . . Repair Station Hacks . | . . . . . . . . Recycling Unit Hacks . | . . . . . . . . Scanalyzer . | . . . . . . . . Garrison Access Hacks . | . . . . . . . . Unauthorized Hacks 12 | . 8 . 4 . . . . Terminals 11 | . 7 . 4 . . . . Assimilate 1 | . 1 . . . . . . Botnet 9 | . 5 . 4 . . . . Operators 1 | . 1 . . . . . . Fabricators . | . . . . . . . . Repair Stations . | . . . . . . . . Recycling Units 1 | . 1 . . . . . . Tunnel 1 | . 1 . . . . . . Scanalyzers . | . . . . . . . . Garrison Access . | . . . . . . . . Data Cores Recovered . | . . . . . . . . Used . | . . . . . . . . Hacking Detections 14 | . 7 . 7 . . . . Full Trace Events 2 | . 1 . 1 . . . . Feedback Events . | . . . . . . . . Feedback Blocked . | . . . . . . . . Robot Schematics Acquired . | . . . . . . . . Robots Built . | . . . . . . . . Authchips . | . . . . . . . . Time . | . . . . . . . . Total Robot Build Rating . | . . . . . . . . Part Schematics Acquired . | . . . . . . . . Parts Built . | . . . . . . . . Authchips . | . . . . . . . . Time . | . . . . . . . . Total Part Build Rating . | . . . . . . . . Parts Repaired . | . . . . . . . . Time . | . . . . . . . . Parts Recycled . | . . . . . . . . Recycled Matter . | . . . . . . . . Retrieved Matter . | . . . . . . . . Retrieved Components . | . . . . . . . . Parts Scanalyzed . | . . . . . . . . Part Schematics Acquired . | . . . . . . . . Parts Damaged . | . . . . . . . . Bothacking | -11 -10 -10 -9 -9 -9 -8 -8 ------------ Run | Scr Mat Min Mat Min Exi Min Mat Used RIF Installer . | . . . . . . . . Robots Hacked . | . . . . . . . . Non-combat . | . . . . . . . . Combat . | . . . . . . . . Robot Hacks Applied . | . . . . . . . . Relay Couplers Released . | . . . . . . . . Fabnet Peak Effective % . | . . . . . . . . Robots Rewired . | . . . . . . . . Allies Hacked . | . . . . . . . . Hacks Repelled . | . . . . . . . . Allies | -11 -10 -10 -9 -9 -9 -8 -8 -------- Run | Scr Mat Min Mat Min Exi Min Mat Total Allies 1 | . . . . 1 . . . Largest Group 1 | . . . . 1 1 . . Highest-Rated Group 31 | . . . . 31 31 . . Highest-Rated Ally 31 | . . . . 31 31 . . Total Orders . | . . . . . . . . Ally Attacks . | . . . . . . . . Total Damage . | . . . . . . . . Kills . | . . . . . . . . Allies Corrupted . | . . . . . . . . Allies Melted . | . . . . . . . . Intel | -11 -10 -10 -9 -9 -9 -8 -8 ------- Run | Scr Mat Min Mat Min Exi Min Mat Robot Analysis Total 3 | . 1 . 2 . . . . Derelict Logs Recovered . | . . . . . . . . Drone Launches . | . . . . . . . . Drone Recoveries . | . . . . . . . . Exploration | -11 -10 -10 -9 -9 -9 -8 -8 ------------- Run | Scr Mat Min Mat Min Exi Min Mat Turns Passed 3317 | . 792 34 1365 506 218 238 164 Spaces Moved 2492 | 1 576 24 882 442 206 218 143 Core . | . . . . . . . . Treads . | . . . . . . . . Legs 79 | 1 78 . . . . . . Wheels 2270 | . 498 24 882 442 206 218 . Hover . | . . . . . . . . Flight 143 | . . . . . . . 143 Fastest Speed 50 | 120 80 105 105 105 105 105 50 Average Speed 100 | 120 96 105 106 105 105 105 50 Slowest Speed 135 | 120 120 105 135 105 105 105 50 Overloaded Moves . | . . . . . . . . Propulsion Burnouts . | . . . . . . . . Robots Hopped 1 | . . . . . . . 1 Cave-ins Triggered . | . . . . . . . . Exploration Rate (%) 47 | 1 91 10 71 74 59 59 13 Regions Visited 7 Branch Regions 4 Pre-discovered Areas 1 | . 1 . . . . . . Known Exits Taken 2 | . 1 . 1 . . . . Unknown Exits Taken 5 | 1 . 1 . 1 1 1 . Scrap Searched 4 | . . . . 2 . 2 . Spaces Dug . | . . . . . . . . Terrain Destroyed 150 | . 25 . . . . 18 107 Melee . | . . . . . . . . Projectile . | . . . . . . . . AOE 150 | . 25 . . . . 18 107 Terrain Rammed . | . . . . . . . . Walls Destroyed . | . . . . . . . . Machines Disabled . | . . . . . . . . Actions | -11 -10 -10 -9 -9 -9 -8 -8 --------- Run | Scr Mat Min Mat Min Exi Min Mat Total 3020 | . 719 32 1177 465 209 225 193 Wait 265 | . 49 9 172 16 . 3 16 Move 2483 | . 575 23 881 441 205 217 141 Hop 1 | . . . . . . . 1 Pick Up 27 | . 12 . 12 . 1 1 1 Fast Attach 15 | . 7 . 8 . . . . Attach 8 | . 2 . 2 . . . 4 Detach . | . . . . . . . . Swap 22 | . 10 . 10 . . 1 1 Drop 43 | . 12 . 24 . 3 1 3 Fire 154 | . 51 . 67 8 . 2 26 Melee . | . . . . . . . . Ram 2 | . 1 . 1 . . . . Kick . | . . . . . . . . Crush . | . . . . . . . . Escape Stasis . | . . . . . . . . Rewire . | . . . . . . . . Trap . | . . . . . . . . Miscellaneous . | . . . . . . . . Route ------- -11/Scrapyard -10/Materials (discovered 4 exits: *Mat x3 / *Min) -10/Mines -9/Materials (discovered 5 exits: [*Mat x2] / *Min x2 / *Sto) -9/Mines (discovered 3 exits: [*Mat x2] / *Exi) -9/Exiles -8/Mines -8/Materials History --------- Turn | Location | Event 1 | -11/Scrapyard | Discovered new exit (range 0) 1 | -11/Scrapyard | Entered Materials 96 | -10/Materials | Central database locked down 96 | -10/Materials | Identified exit to Mines 332 | -10/Materials | Build established: Mutant 387 | -10/Materials | Discovered new exit (range 4) 494 | -10/Materials | Discovered new exit (range 11) 644 | -10/Materials | Discovered new exit (range 15) 793 | -10/Materials | Entered Mines 804 | -10/Mines | Discovered new exit (range 9) 812 | -10/Mines | Met a Derelict bent on vengeance 827 | -10/Mines | Entered Materials 827 | -9/Materials | Evolved 2 slots: Utility x1, Weapon x1 1130 | -9/Materials | Build established: Tank 1439 | -9/Materials | Discovered new exit (range 8) 1505 | -9/Materials | Discovered new exit (range 8) 1999 | -9/Materials | Discovered new exit (range 10) 2071 | -9/Materials | Identified exit to Mines 2071 | -9/Materials | Identified exit to Storage 2071 | -9/Materials | Central database locked down 2071 | -9/Materials | Discovered new exit (range 6) 2192 | -9/Materials | Entered Mines 2321 | -9/Mines | Deemed a non-threat by the Exiles lab entrance 2321 | -9/Mines | Discovered new exit (range 6) 2400 | -9/Mines | Discovered new exit (range 7) 2526 | -9/Mines | Discovered new exit (range 15) 2538 | -9/Mines | Assembled infested the area 2556 | -9/Mines | Received a Mining Laser from a helpful Derelict 2698 | -9/Mines | Entered Exiles 2698 | -9/Exiles | Accompanied by 1 ally 2725 | -9/Exiles | Met 8R-AWN 2743 | -9/Exiles | Met EX-HEX 2772 | -9/Exiles | Met EX-BIN 2784 | -9/Exiles | Aligned with FarCom system 2785 | -9/Exiles | Given EX-Vault access code 2810 | -9/Exiles | Opened EX-Vault 2818 | -9/Exiles | Found Flying Fortress v7 2840 | -9/Exiles | Warned to stay clear of 0b10 Research branches 2870 | -9/Exiles | Met EX-DEC 2906 | -9/Exiles | Discovered new exit (range 12) 2916 | -9/Exiles | Left Exiles lab with Flying Fortress v7 2916 | -9/Exiles | Entered Mines 3138 | -8/Mines | Discovered new exit (range 13) 3154 | -8/Mines | Entered Materials 3154 | -8/Materials | Evolved 2 slots: Propulsion x2 3268 | -8/Materials | Destroyed 8 combat bots 3318 | -8/Materials | Self-destructed Last Messages --------------- 03306_ Overheating: Matter decay (-5). 03307_ Overheating: Autogun damaged (-27). 03308_ Overheating: Structural Scanner damaged (-1). 03309_ Overheating: Core damaged (-60). 03309_ Acquired 46 matter. 03309_ U-05 Engineer lays Concrete. 03309_ Acquired 35 matter. 03309_ W-25 Informer sends out distress signal. 03310_ U-05 Engineer lays Concrete. 03311_ Overheating: Matter decay (-11). 03311_ K-01 Serf collects debris. 03312_ Power failure, Nuclear Core shutdown. 03312_ Overheating: Core damaged (-60). 03312_ U-05 Engineer builds a Wall. 03314_ K-01 Serf collects debris. 03315_ Overheating: System interference. 03315_ Imp. Assault Rifle temporarily disabled. 03316_ U-05 Engineer lays Concrete. 03318_ Flying Fortress v7 broken. 03318_ Overheating: Short circuit. Map ----- +----------------------------------------------------+ | | | | | | | | | | | | | | | | | | | ????????????????????????????################ | | ???????????????????????????? # = # | | ???????????????????????????? # # | | ???????????????????????????? # # | | ??????????????? ######?????? # / # | | ??????????????? ###### # # | | ???????????????## ##+#########+######### | | ????????????????? ######## | | ????????????????? ####?### | | ??????????####### ### ######### ####### | | ?????????? ####### ####+######### ##### | | ?????????? # # # #### | | ?????????? #" + + % """ ### | | ?????????? #T # #w """ #### | | ?????????? #" g# # """ % #### | | ?????????? # # # ] [ ### | | ?????????? # #=@# #### ## | | ?????????? # [#= ##### ## # | | ??????????## **g [ w % | | ??????????## " =#[ g | | ??????????## """ #+## ####### #% | | ??????????## """ # # # ## | | ??????????## # # # # ### ## | | ??????????######## ################ | | ??????????######## ######### | | ????????????????## ##?????## | | ????????????????## ##?????## | | ????????????????## ##?????#### #### | | ????????????????## ##?????#### ###### | | ????????????????## ##???????## ### | | ????????????????############???????## ##???? | | ????????????????############???????## ##???? | | ???????????????????????????????????## ##???? | | ???????????????????????????????????## ##???? | | ???????????????????????????????????## ##???? | | ???????????????????????????????????## ##???? | | ???????????????????????????????????## ##???? | | ????????????????????????????????????? ?????? | | ????????????????????????????????????? ?????? | | ????????????????????????????????????? ?????? | | ????????????????????????????????????? ?????? | +----------------------------------------------------+ Best States ------------- Heat Dissipation 42 Energy Generation 14 Energy Capacity 265 Matter Stores 300 Matter Capacity 300 Sight Range 16 Terrain Scan Density 10 Armor Coverage 450 Evasion (%) 60 Item Schematics ----------------- None Robot Schematics ------------------ None Fabricated ------------ Nothing Alien Tech Used ----------------- None Achievements -------------- None Challenges ------------ None Game ------ Seed GaussColdThrower Manual? 0 Play Time 00:38:21 Cumulative 195.0 hours Start 2022.05.24 @ 10:26:12 End 2022.05.24 @ 11:09:55 Sessions 1 Manual Loads 0 Difficulty Rogue Special Mode None Game No. 82 Rogue 75 Adventurer 0 Explorer 7 Win Type - Total 1 Types 0/0/1/0/0/0/0/0/0 Lore% 61 Gallery% 59 Achievement% 49 Wizard Run 0 Options --------- ASCII 0 Keyboard 0 Movement Mouse Keybinds 0 Fullscreen 1 Font 16/Cog Map View 76x50 Tactical HUD 1 Map Filters NONE Filters NONE Steam 1 RUN: f0aa534c-b540-4ed6-9de1-9858a345a267